[Event "MČR v rapid šachu družstev 2019"]
[Site "Teplice, Czech Republic"]
[Date "2019.09.15"]
[Round "6.1"]
[White "Stocek, Jiri"]
[Black "Jirovsky, Milos"]
[Result "1-0"]
[TimeControl "15 min. + 5s"]
[WhiteElo "2507"]
[BlackElo "2477"]

1. d4 {[%clk 00:15:08]} d5 {[%clk 00:15:09]} {[%emt 00:00:02]} 2. c4 {[%clk
00:15:12]} {[%emt 00:00:02]} e6 {[%clk 00:15:13]} 3. Nc3 {[%clk 00:15:15]}
{[%emt 00:00:03]} Nf6 {[%clk 00:15:17]} 4. Bg5 {[%clk 00:15:16]} {[%emt
00:00:05]} Nbd7 {[%clk 00:15:20]} {[%emt 00:00:02]} 5. e3 {[%clk 00:15:16]}
{[%emt 00:00:05]} c6 {[%clk 00:15:25]} 6. a3 {[%clk 00:15:13]} {[%emt
00:00:09]} Be7 {[%clk 00:14:57]} {[%emt 00:00:33]} 7. Qc2 {[%clk 00:15:13]}
{[%emt 00:00:04]} O-O {[%clk 00:14:53]} {[%emt 00:00:09]} 8. Nf3 {[%clk
00:15:15]} {[%emt 00:00:03]} b6 {[%clk 00:14:36]} {[%emt 00:00:23]} 9. Rd1
{[%clk 00:15:09]} {[%emt 00:00:11]} Ba6 {[%clk 00:14:08]} {[%emt 00:00:33]} 10.
Qa4 {[%clk 00:14:44]} {[%emt 00:00:29]} Bb7 {[%clk 00:14:08]} {[%emt 00:00:06]}
11. Be2 {[%clk 00:14:44]} {[%emt 00:00:05]} a6 {[%clk 00:13:52]} {[%emt
00:00:22]} 12. Qb3 {[%clk 00:14:08]} {[%emt 00:00:41]} dxc4 {[%clk 00:13:13]}
{[%emt 00:00:44]} 13. Qxc4 {[%clk 00:13:31]} {[%emt 00:00:41]} b5 {[%clk
00:12:40]} {[%emt 00:00:38]} 14. Qa2 {[%clk 00:13:32]} {[%emt 00:00:04]} h6
{[%clk 00:11:48]} {[%emt 00:00:58]} 15. Bh4 {[%clk 00:13:25]} {[%emt 00:00:11]}
c5 {[%clk 00:11:36]} {[%emt 00:00:17]} 16. dxc5 {[%clk 00:13:24]} {[%emt
00:00:05]} Bxc5 {[%clk 00:11:40]} {[%emt 00:00:02]} 17. Bxf6 {[%clk 00:13:21]}
{[%emt 00:00:09]} gxf6 {[%clk 00:11:42]} {[%emt 00:00:03]} 18. b4 {[%clk
00:12:27]} {[%emt 00:00:59]} Bb6 {[%clk 00:11:09]} {[%emt 00:00:38]} 19. O-O
{[%clk 00:12:00]} {[%emt 00:00:31]} Qe7 {[%clk 00:10:49]} {[%emt 00:00:25]} 20.
Qb1 {[%clk 00:10:48]} {[%emt 00:01:17]} Rfd8 {[%clk 00:10:43]} {[%emt
00:00:11]} 21. Rd3 {[%clk 00:09:11]} {[%emt 00:01:41]} f5 {[%clk 00:08:44]}
{[%emt 00:02:05]} 22. Rfd1 {[%clk 00:09:02]} {[%emt 00:00:14]} Nf6 {[%clk
00:08:47]} {[%emt 00:00:03]} 23. a4 {[%clk 00:07:25]} {[%emt 00:01:42]} Rxd3
{[%clk 00:08:34]} {[%emt 00:00:17]} 24. Bxd3 {[%clk 00:07:26]} {[%emt
00:00:04]} Rc8 {[%clk 00:07:29]} {[%emt 00:01:10]} 25. Qb2 {[%clk 00:07:29]}
{[%emt 00:00:02]} bxa4 {[%clk 00:06:16]} {[%emt 00:01:19]} 26. Nxa4 {[%clk
00:07:29]} {[%emt 00:00:05]} Ba7 {[%clk 00:06:19]} {[%emt 00:00:01]} 27. Nd4
{[%clk 00:06:31]} {[%emt 00:01:02]} Nd5 {[%clk 00:05:25]} {[%emt 00:01:00]} 28.
b5 {[%clk 00:05:57]} {[%emt 00:00:39]} axb5 {[%clk 00:05:15]} {[%emt 00:00:15]}
29. Bxb5 {[%clk 00:05:26]} {[%emt 00:00:36]} Qb4 {[%clk 00:04:16]} {[%emt
00:01:04]} 30. Qxb4 {[%clk 00:05:00]} {[%emt 00:00:30]} Nxb4 {[%clk 00:04:20]}
{[%emt 00:00:01]} 31. h3 {[%clk 00:04:50]} {[%emt 00:00:15]} f4 {[%clk
00:03:44]} {[%emt 00:00:41]} 32. Bd7 {[%clk 00:04:31]} {[%emt 00:00:24]} Rb8
{[%clk 00:02:30]} {[%emt 00:01:19]} 33. exf4 {[%clk 00:04:23]} {[%emt
00:00:13]} Bd5 {[%clk 00:02:09]} {[%emt 00:00:27]} 34. Nc3 {[%clk 00:03:55]}
{[%emt 00:00:32]} Rd8 {[%clk 00:01:29]} {[%emt 00:00:45]} 35. Ba4 {[%clk
00:03:44]} {[%emt 00:00:17]} Bxg2 {[%clk 00:01:21]} {[%emt 00:00:13]} 36. Ndb5
{[%clk 00:03:41]} {[%emt 00:00:07]} Rxd1+ {[%clk 00:01:00]} {[%emt 00:00:26]}
37. Bxd1 {[%clk 00:03:43]} {[%emt 00:00:03]} Bxh3 {[%clk 00:00:51]} {[%emt
00:00:14]} 38. Nxa7 {[%clk 00:03:42]} {[%emt 00:00:06]} Nd3 {[%clk 00:00:55]}
{[%emt 00:00:01]} 39. Nc6 {[%clk 00:03:01]} {[%emt 00:00:46]} Nxf4 {[%clk
00:00:57]} {[%emt 00:00:03]} 40. Kh2 {[%clk 00:02:53]} {[%emt 00:00:12]} Bf1
{[%clk 00:00:57]} {[%emt 00:00:06]} 41. Kg3 {[%clk 00:02:53]} {[%emt 00:00:05]}
Ng6 {[%clk 00:00:59]} {[%emt 00:00:03]} 42. Ne4 {[%clk 00:02:41]} {[%emt
00:00:17]} Kg7 {[%clk 00:00:58]} {[%emt 00:00:06]} 43. Bh5 {[%clk 00:02:17]}
{[%emt 00:00:28]} Bb5 {[%clk 00:00:46]} {[%emt 00:00:17]} 44. Nd8 {[%clk
00:02:02]} {[%emt 00:00:21]} Ba4 {[%clk 00:00:43]} {[%emt 00:00:09]} 45. Nd6
{[%clk 00:02:02]} {[%emt 00:00:04]} f5 {[%clk 00:00:27]} {[%emt 00:00:22]} 46.
Nxe6+ {[%clk 00:02:02]} {[%emt 00:00:05]} Kf6 {[%clk 00:00:31]} 47. Nc5 {[%clk
00:01:53]} {[%emt 00:00:14]} Bc6 {[%clk 00:00:30]} {[%emt 00:00:07]} 48. Nd3
{[%clk 00:01:50]} {[%emt 00:00:07]} Ne5 {[%clk 00:00:21]} {[%emt 00:00:15]} 49.
Nxe5 {[%clk 00:01:48]} {[%emt 00:00:07]} Kxe5 {[%clk 00:00:26]} 50. Nc4+ {[%clk
00:01:47]} {[%emt 00:00:07]} Kf6 {[%clk 00:00:28]} {[%emt 00:00:03]} 51. Kf4
{[%clk 00:01:50]} {[%emt 00:00:02]} Bd7 {[%clk 00:00:27]} {[%emt 00:00:06]} 52.
Ne3 {[%clk 00:01:51]} {[%emt 00:00:03]} Bc8 {[%clk 00:00:31]} 53. Bd1 {[%clk
00:01:49]} {[%emt 00:00:08]} Bd7 {[%clk 00:00:34]} {[%emt 00:00:02]} 54. Bc2
{[%clk 00:01:52]} {[%emt 00:00:02]} Bc8 {[%clk 00:00:37]} {[%emt 00:00:02]} 55.
Bxf5 {[%emt 00:00:03]} Bb7 56. Bg4 {[%clk 00:01:50]} {[%emt 00:00:09]} Kg6
{[%clk 00:00:46]} {[%emt 00:00:02]} 57. Bf3 {[%clk 00:01:48]} {[%emt 00:00:07]}
Bc8 {[%clk 00:00:50]} 58. Nd5 {[%clk 00:01:48]} {[%emt 00:00:05]} Kg7 {[%clk
00:00:53]} {[%emt 00:00:02]} 59. Bh5 {[%clk 00:01:49]} {[%emt 00:00:04]} Bb7
{[%clk 00:00:56]} {[%emt 00:00:02]} 60. Ke5 {[%clk 00:01:41]} {[%emt 00:00:12]}
Bc6 {[%clk 00:00:59]} {[%emt 00:00:03]} 61. Ne7 {[%clk 00:01:36]} {[%emt
00:00:09]} Ba4 {[%clk 00:01:02]} {[%emt 00:00:03]} 62. Nf5+ {[%clk 00:01:33]}
{[%emt 00:00:07]} Kh7 {[%clk 00:01:05]} {[%emt 00:00:02]} 63. Kf6 {[%clk
00:01:34]} {[%emt 00:00:03]} 1-0

[Event "MČR v rapid šachu družstev 2019"]
[Site "Teplice, Czech Republic"]
[Date "2019.09.15"]
[Round "6.2"]
[White "Sokolov, Alexander"]
[Black "Kociscak, Jiri"]
[Result "1-0"]
[TimeControl "15 min. + 5s"]
[WhiteElo "2384"]
[BlackElo "2410"]

1. e4 {[%clk 00:15:07]} {[%emt 00:00:01]} e5 {[%clk 00:15:09]} {[%emt
00:00:02]} 2. f4 {[%clk 00:15:11]} {[%emt 00:00:01]} exf4 {[%clk 00:15:11]}
{[%emt 00:00:03]} 3. Nf3 {[%clk 00:15:15]} g5 {[%clk 00:15:13]} {[%emt
00:00:03]} 4. Bc4 {[%clk 00:15:13]} {[%emt 00:00:07]} Bg7 {[%clk 00:15:17]}
{[%emt 00:00:01]} 5. h4 {[%clk 00:15:08]} {[%emt 00:00:11]} h6 {[%clk
00:15:20]} {[%emt 00:00:02]} 6. d4 {[%clk 00:15:10]} {[%emt 00:00:02]} Nc6
{[%clk 00:15:19]} {[%emt 00:00:06]} 7. c3 {[%clk 00:15:10]} {[%emt 00:00:06]}
d6 {[%clk 00:14:45]} {[%emt 00:00:38]} 8. O-O {[%clk 00:15:13]} {[%emt
00:00:02]} Qf6 {[%clk 00:13:45]} {[%emt 00:01:05]} 9. Na3 {[%clk 00:13:27]}
{[%emt 00:01:51]} a6 {[%clk 00:12:43]} {[%emt 00:01:07]} 10. Qb3 {[%clk
00:13:08]} {[%emt 00:00:24]} Nge7 {[%clk 00:12:39]} {[%emt 00:00:10]} 11. e5
{[%clk 00:12:43]} {[%emt 00:00:30]} dxe5 {[%clk 00:12:05]} {[%emt 00:00:39]} 12.
dxe5 {[%clk 00:12:46]} Qg6 {[%clk 00:12:09]} {[%emt 00:00:01]} 13. hxg5 {[%clk
00:12:33]} {[%emt 00:00:18]} hxg5 {[%clk 00:12:09]} {[%emt 00:00:05]} 14. Nxg5
{[%clk 00:12:26]} {[%emt 00:00:12]} Nxe5 {[%clk 00:10:07]} {[%emt 00:02:07]} 15.
Bxf4 {[%clk 00:12:18]} {[%emt 00:00:14]} Nxc4 {[%clk 00:10:07]} {[%emt
00:00:05]} 16. Nxc4 {[%clk 00:11:46]} {[%emt 00:00:36]} O-O {[%clk 00:06:41]}
{[%emt 00:03:31]} 17. Rae1 {[%clk 00:11:49]} {[%emt 00:00:02]} Nc6 {[%clk
00:06:45]} 18. Re3 {[%clk 00:11:42]} {[%emt 00:00:13]} b5 {[%clk 00:05:48]}
{[%emt 00:01:01]} 19. Nd2 {[%clk 00:11:22]} {[%emt 00:00:25]} Bf5 {[%clk
00:05:21]} {[%emt 00:00:32]} 20. Ndf3 {[%clk 00:11:10]} {[%emt 00:00:17]} Bc2
{[%clk 00:04:59]} {[%emt 00:00:28]} 21. Qd5 {[%clk 00:10:42]} {[%emt 00:00:33]}
Rad8 {[%clk 00:05:00]} {[%emt 00:00:04]} 22. Qc5 {[%clk 00:10:45]} {[%emt
00:00:02]} Rfe8 {[%clk 00:04:51]} {[%emt 00:00:14]} 23. Nh4 {[%clk 00:10:17]}
{[%emt 00:00:33]} Bf8 {[%clk 00:04:19]} {[%emt 00:00:37]} 24. Qxf8+ {[%clk
00:10:14]} {[%emt 00:00:08]} Rxf8 {[%clk 00:04:22]} {[%emt 00:00:02]} 25. Nxg6
{[%clk 00:10:18]} {[%emt 00:00:01]} fxg6 {[%clk 00:04:26]} {[%emt 00:00:01]} 26.
Ne6 {[%clk 00:10:20]} {[%emt 00:00:03]} Rxf4 {[%clk 00:04:20]} {[%emt
00:00:11]} 27. Rxf4 {[%clk 00:10:24]} {[%emt 00:00:01]} Re8 {[%clk 00:04:24]}
28. Kf2 {[%clk 00:10:14]} {[%emt 00:00:16]} Bb1 {[%clk 00:04:18]} {[%emt
00:00:10]} 29. Nxc7 {[%clk 00:10:12]} {[%emt 00:00:07]} Rxe3 {[%clk 00:03:56]}
{[%emt 00:00:26]} 30. Kxe3 {[%clk 00:10:16]} {[%emt 00:00:01]} Bxa2 {[%clk
00:04:00]} {[%emt 00:00:01]} 31. Nxa6 {[%clk 00:10:19]} {[%emt 00:00:02]} Ne7
{[%clk 00:04:04]} 32. Nc7 {[%clk 00:10:09]} {[%emt 00:00:15]} Bc4 {[%clk
00:04:07]} {[%emt 00:00:02]} 33. Kd4 {[%clk 00:10:09]} {[%emt 00:00:06]} Kg7
{[%clk 00:04:09]} {[%emt 00:00:03]} 34. Kc5 {[%clk 00:10:10]} {[%emt 00:00:04]}
g5 {[%clk 00:04:10]} {[%emt 00:00:04]} 35. Rf2 {[%clk 00:10:08]} {[%emt
00:00:07]} 1-0

[Event "MČR v rapid šachu družstev 2019"]
[Site "Teplice, Czech Republic"]
[Date "2019.09.15"]
[Round "6.3"]
[White "Polak, Tomas"]
[Black "Dolezal, Radoslav"]
[Result "1-0"]
[TimeControl "15 min. + 5s"]
[WhiteElo "2515"]
[BlackElo "2363"]

1. d4 {[%clk 00:15:08]} {[%emt 00:00:01]} d5 {[%clk 00:15:08]} {[%emt
00:00:02]} 2. c4 {[%clk 00:15:11]} {[%emt 00:00:02]} c6 {[%clk 00:15:12]} 3.
Nc3 {[%clk 00:15:14]} {[%emt 00:00:04]} Nf6 {[%clk 00:15:16]} {[%emt 00:00:01]}
4. Nf3 {[%clk 00:15:16]} {[%emt 00:00:03]} a6 {[%clk 00:15:19]} {[%emt
00:00:02]} 5. cxd5 {[%clk 00:15:01]} {[%emt 00:00:20]} cxd5 {[%clk 00:15:23]}
{[%emt 00:00:02]} 6. Bf4 {[%clk 00:14:51]} {[%emt 00:00:14]} e6 {[%clk
00:15:10]} {[%emt 00:00:18]} 7. e3 {[%clk 00:14:53]} {[%emt 00:00:04]} Bd6
{[%clk 00:15:07]} {[%emt 00:00:08]} 8. Bxd6 {[%clk 00:14:33]} {[%emt 00:00:25]}
Qxd6 {[%clk 00:15:10]} {[%emt 00:00:02]} 9. Bd3 {[%clk 00:14:37]} Nbd7 {[%clk
00:14:53]} {[%emt 00:00:23]} 10. O-O {[%clk 00:14:13]} {[%emt 00:00:29]} O-O
{[%clk 00:14:55]} {[%emt 00:00:02]} 11. Qe2 {[%clk 00:13:52]} {[%emt 00:00:27]}
b5 {[%clk 00:14:44]} {[%emt 00:00:16]} 12. Rac1 {[%clk 00:12:19]} {[%emt
00:01:38]} Bb7 {[%clk 00:14:41]} {[%emt 00:00:08]} 13. Rc2 {[%clk 00:12:17]}
{[%emt 00:00:07]} Rfc8 {[%clk 00:12:14]} {[%emt 00:02:32]} 14. Rfc1 {[%clk
00:12:16]} {[%emt 00:00:05]} g6 {[%clk 00:12:17]} {[%emt 00:00:03]} 15. h3
{[%clk 00:12:11]} {[%emt 00:00:10]} Rc6 {[%clk 00:11:26]} {[%emt 00:00:56]} 16.
Qd2 {[%clk 00:11:03]} {[%emt 00:01:12]} Rac8 {[%clk 00:11:22]} {[%emt
00:00:09]} 17. Ne2 {[%clk 00:11:00]} {[%emt 00:00:08]} Rxc2 {[%clk 00:09:16]}
{[%emt 00:02:11]} 18. Rxc2 {[%clk 00:11:04]} {[%emt 00:00:01]} Rxc2 {[%clk
00:09:20]} {[%emt 00:00:01]} 19. Qxc2 {[%clk 00:10:51]} {[%emt 00:00:18]} Kg7
{[%clk 00:09:06]} {[%emt 00:00:19]} 20. Nf4 {[%clk 00:10:39]} {[%emt 00:00:17]}
Qc6 {[%clk 00:08:45]} {[%emt 00:00:25]} 21. Qd2 {[%clk 00:10:11]} {[%emt
00:00:33]} Qc7 {[%clk 00:08:10]} {[%emt 00:00:40]} 22. Qb4 {[%clk 00:09:47]}
{[%emt 00:00:30]} Nb6 {[%clk 00:07:09]} {[%emt 00:01:06]} 23. b3 {[%clk
00:08:34]} {[%emt 00:01:18]} Nc8 {[%clk 00:06:32]} {[%emt 00:00:41]} 24. Ne5
{[%clk 00:08:20]} {[%emt 00:00:19]} Nd6 {[%clk 00:06:23]} {[%emt 00:00:15]} 25.
Qc5 {[%clk 00:08:03]} {[%emt 00:00:22]} Nfe8 {[%clk 00:05:50]} {[%emt
00:00:37]} 26. g4 {[%clk 00:07:53]} {[%emt 00:00:15]} Qd8 {[%clk 00:04:39]}
{[%emt 00:01:16]} 27. Kg2 {[%clk 00:07:11]} {[%emt 00:00:47]} Kg8 {[%clk
00:03:22]} {[%emt 00:01:23]} 28. Kg3 {[%clk 00:06:40]} {[%emt 00:00:35]} g5
{[%clk 00:02:35]} {[%emt 00:00:52]} 29. Nh5 {[%clk 00:06:10]} {[%emt 00:00:35]}
f6 {[%clk 00:02:30]} {[%emt 00:00:10]} 30. Nf3 {[%clk 00:05:40]} {[%emt
00:00:35]} Ne4+ {[%clk 00:01:57]} {[%emt 00:00:38]} 31. Bxe4 {[%clk 00:05:43]}
{[%emt 00:00:02]} dxe4 {[%clk 00:02:01]} {[%emt 00:00:01]} 32. Nd2 {[%clk
00:05:34]} {[%emt 00:00:14]} Kf7 {[%clk 00:02:05]} 33. Kg2 {[%clk 00:05:14]}
{[%emt 00:00:25]} Qa5 {[%clk 00:01:00]} {[%emt 00:01:10]} 34. Nc4 {[%clk
00:04:23]} {[%emt 00:00:55]} Qd8 {[%clk 00:01:04]} {[%emt 00:00:01]} 35. Qa7
{[%clk 00:04:07]} {[%emt 00:00:21]} Qc7 {[%clk 00:00:28]} {[%emt 00:00:40]} 36.
Na5 {[%clk 00:03:54]} {[%emt 00:00:18]} Bc8 {[%clk 00:00:32]} {[%emt 00:00:02]}
37. Qc5 {[%clk 00:03:22]} {[%emt 00:00:36]} Qxa5 {[%clk 00:00:13]} {[%emt
00:00:24]} 38. Qxc8 {[%clk 00:03:25]} {[%emt 00:00:03]} Qc7 {[%clk 00:00:08]}
{[%emt 00:00:10]} 39. Qxa6 {[%clk 00:03:23]} {[%emt 00:00:07]} b4 {[%clk
00:00:12]} {[%emt 00:00:01]} 40. Qb5 {[%clk 00:03:15]} {[%emt 00:00:12]} Qd6
{[%clk 00:00:06]} {[%emt 00:00:11]} 41. Ng3 {[%clk 00:03:11]} {[%emt 00:00:08]}
Qd5 {[%clk 00:00:07]} {[%emt 00:00:06]} 42. Qxb4 {[%clk 00:03:09]} {[%emt
00:00:07]} Nd6 {[%clk 00:00:11]} {[%emt 00:00:01]} 43. Qc5 {[%clk 00:03:05]}
{[%emt 00:00:08]} Ke7 {[%clk 00:00:10]} {[%emt 00:00:06]} 44. Qc7+ {[%clk
00:03:06]} {[%emt 00:00:04]} Kf8 {[%clk 00:00:13]} {[%emt 00:00:02]} 45. Qxh7
{[%clk 00:03:02]} {[%emt 00:00:09]} Qb5 {[%clk 00:00:16]} {[%emt 00:00:02]} 46.
Qc7 {[%clk 00:02:58]} {[%emt 00:00:09]} 1-0

[Event "MČR v rapid šachu družstev 2019"]
[Site "Teplice, Czech Republic"]
[Date "2019.09.15"]
[Round "6.4"]
[White "Postupa, Pavel"]
[Black "Vymazal, Bronislav"]
[Result "1-0"]
[TimeControl "15 min. + 5s"]
[WhiteElo "2203"]
[BlackElo "2347"]

1. e4 {[%clk 00:15:09]} {[%emt 00:06:49]} g6 {[%clk 00:15:07]} {[%emt
00:00:03]} 2. d4 {[%clk 00:15:12]} {[%emt 00:00:02]} Bg7 {[%clk 00:15:11]} 3.
Nc3 {[%clk 00:15:16]} {[%emt 00:00:01]} c5 {[%clk 00:15:15]} {[%emt 00:00:01]}
4. dxc5 {[%clk 00:15:07]} {[%emt 00:00:13]} Qa5 {[%clk 00:15:19]} {[%emt
00:00:01]} 5. Bd2 {[%clk 00:15:06]} {[%emt 00:00:06]} Qxc5 {[%clk 00:15:22]}
{[%emt 00:00:02]} 6. Nf3 {[%clk 00:15:09]} {[%emt 00:00:02]} Nf6 {[%clk
00:14:48]} {[%emt 00:00:39]} 7. Bd3 {[%clk 00:15:12]} {[%emt 00:00:01]} Nc6
{[%clk 00:14:47]} {[%emt 00:00:07]} 8. O-O {[%clk 00:14:47]} {[%emt 00:00:30]}
d6 {[%clk 00:14:47]} {[%emt 00:00:05]} 9. Be3 {[%clk 00:14:25]} {[%emt
00:00:27]} Qh5 {[%clk 00:14:41]} {[%emt 00:00:11]} 10. Be2 {[%clk 00:14:25]}
{[%emt 00:00:05]} Qa5 {[%clk 00:13:18]} {[%emt 00:01:28]} 11. a3 {[%clk
00:14:07]} {[%emt 00:00:24]} O-O {[%clk 00:13:19]} {[%emt 00:00:03]} 12. b4
{[%clk 00:13:42]} {[%emt 00:00:29]} Qd8 {[%clk 00:13:17]} {[%emt 00:00:07]} 13.
Rb1 {[%clk 00:13:09]} {[%emt 00:00:39]} Bg4 {[%clk 00:13:10]} {[%emt 00:00:12]}
14. h3 {[%clk 00:12:58]} {[%emt 00:00:16]} Bxf3 {[%clk 00:13:13]} {[%emt
00:00:02]} 15. Bxf3 {[%clk 00:13:00]} {[%emt 00:00:03]} Ne5 {[%clk 00:12:50]}
{[%emt 00:00:28]} 16. Nd5 {[%clk 00:11:39]} {[%emt 00:01:26]} Nxd5 {[%clk
00:12:45]} {[%emt 00:00:10]} 17. Qxd5 {[%clk 00:11:40]} {[%emt 00:00:03]} Rc8
{[%clk 00:12:22]} {[%emt 00:00:28]} 18. Qxb7 {[%clk 00:11:06]} {[%emt
00:00:40]} Rc7 {[%clk 00:09:15]} {[%emt 00:03:12]} 19. Qd5 {[%clk 00:10:35]}
{[%emt 00:00:36]} Nxf3+ {[%clk 00:09:16]} {[%emt 00:00:04]} 20. gxf3 {[%clk
00:10:39]} Rxc2 {[%clk 00:09:20]} {[%emt 00:00:03]} 21. Rfc1 {[%clk 00:10:39]}
{[%emt 00:00:04]} Rxc1+ {[%clk 00:08:53]} {[%emt 00:00:32]} 22. Rxc1 {[%clk
00:10:34]} {[%emt 00:00:10]} Qd7 {[%clk 00:08:14]} {[%emt 00:00:44]} 23. Kg2
{[%clk 00:10:34]} {[%emt 00:00:05]} Rd8 {[%clk 00:05:19]} {[%emt 00:03:00]} 24.
Qa5 {[%clk 00:10:20]} {[%emt 00:00:19]} e6 {[%clk 00:04:53]} {[%emt 00:00:30]}
25. Rc7 {[%clk 00:10:16]} {[%emt 00:00:09]} Qe8 {[%clk 00:04:56]} {[%emt
00:00:02]} 26. Bg5 {[%clk 00:09:54]} {[%emt 00:00:27]} Rb8 {[%clk 00:03:37]}
{[%emt 00:01:25]} 27. Qxa7 {[%clk 00:09:52]} {[%emt 00:00:06]} Rb5 {[%clk
00:03:18]} {[%emt 00:00:24]} 28. Be3 {[%clk 00:08:43]} {[%emt 00:01:15]} Be5
{[%clk 00:02:45]} {[%emt 00:00:38]} 29. Re7 {[%clk 00:07:00]} {[%emt 00:01:49]}
Qf8 {[%clk 00:02:48]} {[%emt 00:00:02]} 30. Rb7 {[%clk 00:06:48]} {[%emt
00:00:16]} Rxb7 {[%clk 00:02:35]} {[%emt 00:00:18]} 31. Qxb7 {[%clk 00:06:52]}
{[%emt 00:00:01]} Qd8 {[%clk 00:01:45]} {[%emt 00:00:54]} 32. a4 {[%clk
00:06:32]} {[%emt 00:00:25]} d5 {[%clk 00:01:49]} {[%emt 00:00:01]} 33. exd5
{[%clk 00:06:22]} {[%emt 00:00:15]} exd5 {[%clk 00:01:51]} {[%emt 00:00:03]} 34.
a5 {[%clk 00:06:25]} {[%emt 00:00:02]} d4 {[%clk 00:01:34]} {[%emt 00:00:23]}
35. Bd2 {[%clk 00:06:27]} {[%emt 00:00:03]} Bb8 {[%clk 00:00:29]} {[%emt
00:01:09]} 36. a6 {[%clk 00:06:25]} {[%emt 00:00:07]} Qd6 {[%clk 00:00:33]}
{[%emt 00:00:01]} 37. f4 {[%clk 00:06:17]} {[%emt 00:00:13]} h5 {[%clk
00:00:16]} {[%emt 00:00:22]} 38. b5 {[%clk 00:05:17]} {[%emt 00:01:04]} g5
{[%clk 00:00:18]} {[%emt 00:00:03]} 39. b6 {[%clk 00:04:40]} {[%emt 00:00:42]}
gxf4 {[%clk 00:00:17]} {[%emt 00:00:06]} 40. a7 {[%clk 00:04:41]} {[%emt
00:00:04]} f3+ {[%clk 00:00:20]} {[%emt 00:00:02]} 41. Kxf3 {[%clk 00:04:13]}
{[%emt 00:00:32]} Qf6+ {[%clk 00:00:14]} {[%emt 00:00:11]} 42. Ke4 {[%clk
00:03:59]} {[%emt 00:00:15]} Qe5+ {[%clk 00:00:08]} {[%emt 00:00:15]} 43. Kd3
{[%clk 00:03:55]} {[%emt 00:00:09]} Qb5+ {[%clk 00:00:09]} {[%emt 00:00:04]} 44.
Kxd4 {[%clk 00:03:51]} {[%emt 00:00:08]} Be5+ {[%clk 00:00:11]} {[%emt
00:00:04]} 45. Ke4 {[%clk 00:03:24]} {[%emt 00:00:32]} f5+ {[%clk 00:00:06]}
{[%emt 00:00:10]} 46. Kxf5 {[%clk 00:03:08]} {[%emt 00:00:19]} Bg7+ {[%clk
00:00:07]} {[%emt 00:00:06]} 47. Ke6 {[%clk 00:03:00]} {[%emt 00:00:12]} Qe5+
{[%clk 00:00:09]} {[%emt 00:00:04]} 48. Kd7 {[%clk 00:02:54]} {[%emt 00:00:06]}
Qd4+ {[%clk 00:00:13]} {[%emt 00:00:06]} 49. Kc6 {[%clk 00:02:49]} {[%emt
00:00:09]} Qe4+ {[%clk 00:00:16]} {[%emt 00:00:03]} 50. Kc7 {[%clk 00:02:48]}
{[%emt 00:00:06]} Be5+ {[%clk 00:00:12]} {[%emt 00:00:09]} 51. Kc8 {[%clk
00:02:50]} {[%emt 00:00:03]} Qc4+ {[%clk 00:00:08]} {[%emt 00:00:09]} 52. Kd8
{[%clk 00:02:40]} {[%emt 00:00:15]} Qd4+ {[%clk 00:00:06]} {[%emt 00:00:07]} 53.
Ke8 {[%clk 00:02:30]} {[%emt 00:00:14]} Qa4+ {[%clk 00:00:06]} {[%emt
00:00:06]} 54. Qd7 {[%clk 00:02:27]} {[%emt 00:00:09]} Qa3 {[%clk 00:00:07]}
{[%emt 00:00:05]} 55. Qf7 {[%emt 00:00:16]} 1-0